fUSD/lending_fUSD_20250116
["ID","MTS","AMOUNT","RATE_DAILY","PERIOD"]
[349204649,1737036644921,-2584.75,0.00038999,18]
[349204650,1737036644931,-2584.75,0.00038999,18]
[349204651,1737036644940,-881.86,0.00038999,18]
[349204652,1737036644950,-2584.75,0.00038999,18]
[349204653,1737036644959,-500.0,0.00038999,18]
[349204654,1737036644969,-2584.75,0.00038999,18]
[349204655,1737036644978,-2584.75,0.00038999,18]
[349204656,1737036644988,-2584.75,0.00038999,18]
[349204657,1737036644997,-2584.75,0.00038999,18]
[349204658,1737036645006,-500.0,0.00038999,18]
[349204659,1737036645016,-2584.75,0.00038999,18]
[349204660,1737036645025,-881.86,0.00038999,18]
[349204661,1737036645035,-500.0,0.00038999,18]
[349204662,1737036645045,-2584.75,0.00038999,18]
[349204663,1737036645054,-881.86,0.00038999,18]
[349204664,1737036645063,-500.0,0.00038999,18]
[349204665,1737036645072,-2584.75,0.00038999,18]
[349204666,1737036645081,-881.86,0.00038999,18]
[349204667,1737036645091,-2584.75,0.00038999,18]
[349204668,1737036645100,-500.0,0.00038999,18]
[349204669,1737036645110,-2584.75,0.00038999,18]
[349204670,1737036645119,-881.86,0.00038999,18]
[349204671,1737036645129,-500.0,0.00038999,18]
[349204672,1737036645139,-2584.75,0.00038999,18]
[349204673,1737036645149,-881.86,0.00038999,18]
[349204674,1737036645161,-2584.75,0.00038999,18]
[349204675,1737036645171,-500.0,0.00038999,18]
[349204676,1737036645181,-2584.75,0.00038999,18]
[349204677,1737036645191,-881.86,0.00038999,18]
[349204678,1737036645201,-500.0,0.00038999,18]
[349204679,1737036645211,-2584.75,0.00038999,18]
[349204680,1737036645221,-2152.18,0.00038999,18]
[349204681,1737036645230,-718.02776014,0.00038999,18]
[349204682,1737036645292,-163.83223986,0.00038999,18]
[349204683,1737036645302,-500.0,0.00038999,18]
[349204684,1737036645313,-2584.75,0.00038999,18]
[349204685,1737036645323,-2152.18,0.00038999,18]
[349204686,1737036645334,-881.86,0.00038999,18]
[349204687,1737036645344,-2584.75,0.00038999,18]
[349204688,1737036645354,-500.0,0.00038999,18]
[349204689,1737036645364,-2152.18,0.00038999,18]
[349204690,1737036645375,-2584.82873123,0.00038999,18]
[349204691,1737036645385,-2152.18,0.00038999,18]
[349204697,1737036645529,-2152.18,0.00038999,18]
[349204698,1737036645542,-881.86,0.00038999,18]
[349204699,1737036645552,-2152.18,0.00038999,18]
[349204701,1737036645562,-2152.18,0.00038999,18]
[349204703,1737036645571,-881.86,0.00038999,18]
[349204704,1737036645581,-2152.18,0.00038999,18]
[349204705,1737036645590,-2152.18,0.00038999,18]
[349204706,1737036645600,-881.86,0.00038999,18]
[349204707,1737036645609,-2152.18,0.00038999,18]
[349204708,1737036645618,-2152.18,0.00038999,18]
[349204709,1737036645627,-881.86,0.00038999,18]
[349204710,1737036645637,-2152.18,0.00038999,18]
[349204711,1737036645646,-881.86,0.00038999,18]
[349204712,1737036645657,-2152.18,0.00038999,18]
[349204713,1737036645668,-881.86,0.00038999,18]
[349204715,1737036645685,-1921.8305574,0.00038999,18]
[349204719,1737036645700,-230.3494426,0.00038999,18]
[349204723,1737036645710,-362.1805574,0.00038999,18]
[349204726,1737036645726,-293.565,0.00038998,18]
[349204728,1737036645738,-206.435,0.00038998,18]
[349204729,1737036645747,-1556.74897897,0.00038999,18]
[349204730,1737036645779,-16.17581033,0.00038999,18]
[349204733,1737036646232,-446.91429972,0.00038998,18]
[349204735,1737036646273,-53.08570028,0.00038998,18]
[349204736,1737036646283,-217.0746533,0.00038999,18]
[349204737,1737036646292,-647.19508801,0.00038999,18]
[349204738,1737036646304,-234.66491199,0.00038999,18]
[349204739,1737036646314,-2152.18,0.00038999,18]
[349204740,1737036646323,-531.53018522,0.00038999,18]
[349204741,1737036646400,-1620.64981478,0.00038999,18]
[349204742,1737036646413,-149.00193922,0.00038999,18]
[349204743,1737036646434,-1655.65,0.00038999,18]
[349204744,1737036646446,-347.52806078,0.00038999,18]
[349204745,1737036646456,-881.95092016,0.00038999,18]
[349204746,1737036646466,-2152.18,0.00038999,18]
[349204747,1737036646477,-2037.79101906,0.00038999,18]
[349204748,1737036646707,-114.38898094,0.00038999,18]
[349204749,1737036646717,-2831.45,0.00038999,18]
[349204750,1737036646727,-1882.02146948,0.00038999,18]
[349204751,1737036646778,-270.15853052,0.00038999,18]
[349204752,1737036646788,-984.10263277,0.00038999,18]
[349204753,1737036646801,-1847.34736723,0.00038999,18]
[349204754,1737036646810,-482.85051488,0.00038999,18]
[349204755,1737036646822,-867.10948512,0.00038999,18]
[349204756,1737036646831,-2152.31528036,0.00038999,18]
[349204757,1737036646841,-1349.96,0.00038999,18]
[349204758,1737036646850,-1349.96,0.00038999,18]
[349204759,1737036646860,-940.65523452,0.00038999,18]
[349204760,1737036646871,-1890.79476548,0.00038999,18]
[349204761,1737036646881,-1349.96,0.00038999,18]
[349204762,1737036646891,-1349.96,0.00038999,18]
[349204763,1737036646900,-1349.96,0.00038999,18]
[349204764,1737036646914,-1349.96,0.00038999,18]
[349204765,1737036646923,-1349.96,0.00038999,18]
[349204766,1737036646933,-2831.45,0.00038999,18]
[349204767,1737036646942,-1349.96,0.00038999,18]
[349204768,1737036646952,-1349.96,0.00038999,18]
[349204769,1737036646962,-2831.45,0.00038999,18]
[349204770,1737036646972,-1349.96,0.00038999,18]
[349204771,1737036646981,-1349.96,0.00038999,18]
[349204772,1737036646991,-2831.45,0.00038999,18]
[349204773,1737036647002,-1349.96,0.00038999,18]
[349204774,1737036647012,-428.85318233,0.00038999,18]
[349204775,1737036647024,-921.10681767,0.00038999,18]
[349204776,1737036647034,-1349.96,0.00038999,18]
[349204777,1737036647044,-1349.96,0.00038999,18]
[349204778,1737036647053,-1349.96,0.00038999,18]
[349204779,1737036647062,-559.30183332,0.00038999,18]
[349204780,1737036647074,-1651.3,0.00038999,18]
[349204781,1737036721066,291.74145,0.00038648,30]
[349204785,1737037278349,729.0,0.000163,2]
[349204786,1737037279151,656.0,0.000163,2]
[349204787,1737037509203,45532.86437044,0.00012,2]
[349204788,1737037509227,100000.0,0.00012,2]
[349204789,1737037509249,99799.77486824,0.00012,2]
[349204790,1737037509272,100000.0,0.00012,2]
[349204791,1737037509307,16196.0,0.00012,2]
[349204792,1737037509332,295000.0,0.00012,2]
[349204793,1737037509355,99835.45,0.00012,2]
[349204794,1737037509382,750.0,0.00012,2]
[349204795,1737037520696,1073.13875602,9e-05,2]
[349204796,1737037537548,275.16771606,8e-05,2]
[349204797,1737037563015,178.27211992,0.00022519,90]
[349204799,1737037629523,151.39160181,0.00022519,30]
[349204800,1737037644144,-6675.0,0.00011644,2]
[349204801,1737037644167,-300.0,0.00011999,2]
[349204802,1737037644191,-7281.35005866,0.00012,2]
[349204803,1737037650089,-22024.51896636,0.00012,2]
[349204804,1737037672698,3722.614621,0.00022519,2]
[349204805,1737037675015,151.60911798,0.00022519,30]
[349204806,1737037683584,220646.14756792,0.0001,2]
[349204810,1737037727979,1000.0,9.132e-05,2]
[349204811,1737037747121,-307.17919192,0.00010999,2]
[349204812,1737037747143,-300.0,0.000115,4]
[349204813,1737037747169,-600.0,0.000116,4]
[349204814,1737037747190,-900.0,0.000117,4]
[349204815,1737037747210,-289.68997302,0.000117,2]
[349204816,1737037747233,-1200.0,0.000118,4]
[349204817,1737037747254,-1500.0,0.000119,4]
[349204818,1737037747276,-135437.00263506,0.00012,2]
[349204819,1737037747301,-238180.229,0.00012,2]
[349204820,1737037752124,-27790.40194,0.00012,2]
[349204821,1737037758132,-45325.28714,0.00012,2]
[349204822,1737037758162,-91116.73578,0.00012,2]
[349204823,1737037760257,-7677.841556,0.00012,2]
[349204824,1737037764100,-47712.86212,0.00012,2]
[349204825,1737037766096,-1255.54371949,0.00012,2]
[349204826,1737037770156,-331338.1862,0.00012,2]
[349204827,1737037771086,-56198.74484,0.00012,2]
[349204828,1737037772095,-31383.25834,0.00012,2]
[349204837,1737037814944,-300.0,0.00011999,2]
[349204838,1737037814973,-15742.0,0.00012,2]
[349204848,1737037831966,-746.93467711,0.00012,2]
[349204849,1737037831977,-19353.6594787,0.00012,2]
[349204850,1737037831991,-4517.21755419,0.00012,2]
[349204851,1737037832002,-7780.23843371,0.00012,2]
[349204852,1737037832119,-21877.93489466,0.00012,2]
[349204853,1737037832131,-1443.54971752,0.00012,2]
[349204854,1737037832144,-5542.7727624,0.00012,2]
[349204855,1737037832155,-342.527592,0.00012,2]
[349204856,1737037832167,-720.52065708,0.00012,2]
[349204857,1737037832270,-404.92261432,0.00012,2]
[349204858,1737037832286,-1666.75681614,0.00012,2]
[349204859,1737037832298,-6789.38010432,0.00012,2]
[349204860,1737037832310,-3026.48911653,0.00012,2]
[349204861,1737037832322,-714.63265258,0.00012,2]
[349204862,1737037832334,-7398.42236466,0.00012,2]
[349204863,1737037832350,-82982.30087,0.00012,2]
[349204864,1737037832362,-1305.49139509,0.00012,2]
[349204865,1737037832373,-1259.99999995,0.00012,2]
[349204866,1737037832386,-4767.4,0.00012,2]
[349204872,1737037837823,-11066.37801371,0.00012,2]
[349204873,1737037837864,-20469.56654378,0.00012,2]
[349204874,1737037837942,-2949.65090184,0.00012,2]
[349204875,1737037837961,-3355.451,0.00012,2]
[349204876,1737037837973,-5389.370453,0.00012,2]
[349204877,1737037838039,-2608.14332056,0.00012,2]
[349204878,1737037838073,-573.45,0.00012,2]
[349204879,1737037838085,-12555.74030853,0.00012,2]
[349204880,1737037838182,-500.0,0.00012,2]
[349204881,1737037838211,-740.70110519,0.00012,2]
[349204882,1737037838223,-9913.0,0.00012,2]
[349204940,1737037839983,-7605.460225,0.00012,2]
[349204941,1737037840079,-648.38324154,0.00012,2]
[349204942,1737037840091,-553.06899972,0.00012,2]
[349204943,1737037840176,-1665.5367246,0.00012,2]
[349204944,1737037840188,-695.72,0.00012,2]
[349204945,1737037840199,-1787.28722246,0.00012,2]
[349204946,1737037840212,-4019.09127962,0.00012,2]
[349204947,1737037840225,-315.6,0.00012,2]
[349204948,1737037840270,-10206.89863242,0.00012,2]
[349204949,1737037840281,-1915.80175872,0.00012,2]
[349204950,1737037840292,-665.52999998,0.00012,2]
[349204963,1737037842959,-484.79208087,0.00012,2]
[349204965,1737037842970,-5549.69022897,0.00012,2]
[349204967,1737037842981,-5249.71531183,0.00012,2]
[349204970,1737037843008,-732.542,0.00012,2]
[349204975,1737037843074,-5006.25,0.00012,2]
[349204976,1737037843163,-1190.67278887,0.00012,2]
[349204977,1737037843181,-3353.5902801,0.00012,2]
[349204978,1737037843278,-468.649,0.00012,2]
[349205015,1737037845976,-4719.57656358,0.00012,2]
[349205017,1737037845988,-2308.84287924,0.00012,2]
[349205020,1737037846003,-364.19999924,0.00012,2]
[349205022,1737037846014,-845.005,0.00012,2]
[349205024,1737037846025,-1867.77330485,0.00012,2]
[349205032,1737037846098,-2715.19036751,0.00012,2]
[349205034,1737037846110,-7116.91563249,0.00012,2]
[349205037,1737037846122,-38536.00000002,0.00012,2]
[349205060,1737038092723,-164.55,0.00010137,2]
[349205062,1737038249458,179.7,9.516e-05,2]
[349205063,1737038701473,-166.65,0.00010509,2]
[349205064,1737038701498,-1000.0,0.00010511,2]
[349205065,1737038701520,-3346.79,0.00010524,2]
[349205066,1737038701543,-1100.03,0.00010524,2]
[349205067,1737038701566,-2575.20837135,0.00010961,2]
[349205068,1737038704190,200.0,0.00010497,2]
[349205069,1737038722495,-157.97880131,0.00011013,2]
[349205070,1737038722517,-152.03,0.00011113,2]
[349205071,1737038722541,-152.03,0.00011116,2]
[349205072,1737038722562,-152.03,0.0001112,2]
[349205073,1737038722585,-152.03,0.00011123,2]
[349205074,1737038722608,-152.03,0.00011127,2]
[349205075,1737038722632,-152.03,0.0001113,2]
[349205076,1737038722654,-152.03,0.00011134,2]
[349205077,1737038722679,-152.03,0.00011137,2]
[349205078,1737038722702,-152.03,0.00011141,2]
[349205079,1737038722725,-152.03,0.00011144,2]
[349205080,1737038722753,-152.03,0.00011148,2]
[349205081,1737038722777,-152.03,0.00011151,2]
[349205082,1737038722800,-152.03,0.00011155,2]
[349205083,1737038722821,-152.03,0.00011158,2]
[349205084,1737038722844,-152.03,0.00011161,2]
[349205085,1737038722866,-152.03,0.00011165,2]
[349205086,1737038722889,-152.03,0.00011168,2]
[349205087,1737038722914,-514.1,0.00011187,2]
[349205088,1737038722936,-150.0,0.00011187,2]
[349205089,1737038722958,-250.0,0.00011298,2]
[349205090,1737038722980,-500.0,0.00011408,2]
[349205091,1737038723007,-400.0,0.000115,4]
[349205092,1737038723031,-800.0,0.000116,4]
[349205093,1737038723054,-1200.0,0.000117,4]
[349205094,1737038723077,-1563.0,0.00011761,2]
[349205095,1737038723100,-1700.0,0.000118,4]
[349205096,1737038723122,-180.41119869,0.00011811,2]
[349205097,1737038738094,-119.58880131,0.00011811,2]
[349205098,1737038738116,-485.49993582,0.00011825,2]
[349205099,1737038756562,-1728.95312979,0.00011795,2]
[349205100,1737038756585,-514.50006418,0.00011825,2]
[349205101,1737038756609,-250.0,0.00011895,2]
[349205102,1737038756633,-989.59,0.00011895,2]
[349205103,1737038756656,-403.65,0.00011895,2]
[349205104,1737038756679,-3857.30680603,0.00011899,2]
[349205105,1737038760910,2000.0,0.00016901,120]
[349205106,1737038778733,-185.85219397,0.00011899,2]
[349205107,1737038778755,-170.2,0.00011899,2]
[349205108,1737038778778,-155.94780603,0.000119,2]
[349205109,1737038787554,-176.23422079,0.000119,2]
[349205110,1737038787580,-160.28104879,0.000119,2]
[349205111,1737038787603,-300.0,0.00011972,2]
[349205112,1737038787625,-330.0,0.00011973,2]
[349205113,1737038787648,-500.0,0.00011973,2]
[349205114,1737038787670,-164.47960653,0.00011973,2]
[349205115,1737038787692,-161.79879821,0.00011973,2]
[349205116,1737038787713,-151.54582096,0.00011973,2]
[349205117,1737038787734,-516.78038566,0.00011973,2]
[349205118,1737038787755,-151.92419136,0.00011973,2]
[349205119,1737038787778,-500.0,0.00011973,2]
[349205120,1737038787800,-151.8907735,0.00011973,2]
[349205121,1737038787824,-151.9200694,0.00011973,2]
[349205122,1737038787845,-151.9178429,0.00011973,2]
[349205123,1737038787868,-500.0,0.00011973,2]
[349205124,1737038787890,-500.0,0.00011973,2]
[349205125,1737038787912,-300.0,0.00011999,2]
[349205126,1737038787934,-1167.43923972,0.00011999,3]
[349205127,1737038787956,-1167.43923972,0.00011999,3]
[349205128,1737038787978,-1167.43923972,0.00011999,3]
[349205129,1737038787998,-1167.43923972,0.00011999,3]
[349205130,1737038788019,-1167.43923973,0.00011999,3]
[349205131,1737038788042,-500.0,0.00011999,2]
[349205132,1737038788070,-13794.03104329,0.00012,2]
[349205133,1737038796214,-8000.0,0.00012,2]
[349205135,1737038819250,153.03,0.00010137,2]
[349205138,1737038826101,-300.0,0.00011999,2]
[349205139,1737038826124,-1402.87636064,0.00012,2]
[349205140,1737038826156,-16690.42134614,0.00012,2]
[349205141,1737038828108,-721.63749653,0.00012,2]
[349205142,1737038838121,-575.9517406,0.00011999,2]
[349205144,1737038948097,-153.5568174,0.000115,4]
[349205145,1737038950083,-530.9882452,0.000115,4]
[349205147,1737038952571,-906.5053214,0.000115,4]
[349205148,1737038959189,-408.949616,0.000115,4]
[349205149,1737038959213,-4000.0,0.000116,4]
[349205150,1737038959234,-167.0,0.00011699,2]
[349205151,1737038959290,-300.0,0.00011699,2]
[349205152,1737038959313,-6100.0,0.000117,4]
[349205153,1737038959335,-8100.0,0.000118,4]
[349205154,1737038959358,-961.75779,0.0001188,2]
[349205155,1737038959385,-10200.0,0.000119,4]
[349205156,1737038959411,-424.0482594,0.00011999,2]
[349205157,1737038959435,-1001.46502215,0.00011999,2]
[349205158,1737038959457,-150.0,0.00011999,2]
[349205159,1737038959479,-94714.99091245,0.00012,2]
[349205160,1737038963181,-627.6649512,0.00012,2]
[349205161,1737038964100,-1822.334794,0.00012,2]
[349205162,1737038973100,-2103.471608,0.00012,2]
[349205163,1737038973632,-47516.09968,0.00012,2]
[349205177,1737039032116,-499.0,0.000119,2]
[349205179,1737039032126,-1000.0,0.000119,2]
[349205181,1737039032135,-300.0,0.00011999,2]
[349205182,1737039032143,-17790.7,0.00012,2]
[349205183,1737039032153,-346.92273635,0.00012,2]
[349205184,1737039032174,-8739.28065605,0.00012,2]
[349205185,1737039032184,-981.73,0.00012,2]
[349205186,1737039032194,-999.992,0.00012,2]
[349205187,1737039032203,-399.08438244,0.00012,2]
[349205235,1737039033148,-1660.32163065,0.00012,2]
[349205237,1737039033161,-609.89088635,0.00012,2]
[349205239,1737039033173,-980.01,0.00012,2]
[349205254,1737039033334,-19540.00000001,0.00012,2]
[349205256,1737039033347,-3251.22842254,0.00012,2]
[349205261,1737039033393,-2399.33889844,0.00012,2]
[349205263,1737039033406,-500.0,0.00012,2]
[349205266,1737039033420,-4920.0,0.00012,2]
[349205268,1737039033432,-68407.30546662,0.00012,2]
[349205270,1737039033449,-1384.31465492,0.00012,2]
[349205273,1737039033463,-19728.8,0.00012,2]
[349205277,1737039033502,-59273.37953692,0.00012,2]
[349205279,1737039033515,-168350.46100184,0.00012,2]
[349205282,1737039033527,-45998.13513768,0.00012,2]
[349205284,1737039033541,-184421.44913034,0.00012,2]
[349205286,1737039033558,-20170.78862555,0.00012,2]
[349205288,1737039033571,-148260.00057732,0.00012,2]
[349205290,1737039033584,-5043.49999999,0.00012,2]
[349205293,1737039033596,-428.58712643,0.00012,2]
[349205295,1737039033608,-1650.5,0.00012,2]
[349205297,1737039033620,-51183.8640936,0.00012,2]
[349205299,1737039033632,-2176.09119283,0.00012,2]
[349205555,1737039038144,-277.40067284,0.00012,2]
[349205556,1737039038418,-38059.55817245,0.00012,2]
[349205557,1737039038430,-6593.99999998,0.00012,2]
[349205558,1737039038449,-5000.0957014,0.00012,2]
[349205559,1737039038461,-976.98,0.00012,2]
[349205560,1737039038472,-10685.721533,0.00012,2]
[349205561,1737039038507,-3300.0,0.00012,2]
[349205562,1737039038519,-996.76755004,0.00012,2]
[349205563,1737039038559,-2808466.19397897,0.00012,2]
[349205564,1737039038593,-8305.06196259,0.00012,2]
[349205565,1737039038625,-63.99463773,0.00012,2]
[349205566,1737039038637,-22387.20481563,0.00012,2]
[349205567,1737039038651,-4200.0,0.00012,2]
[349205569,1737039038663,-3103.57100234,0.00012,2]
[349205571,1737039038674,-4019.66887,0.00012,2]
[349205573,1737039038685,-11357.50001164,0.00012,2]
[349205575,1737039038697,-283.1764706,0.00012,2]
[349205577,1737039038709,-499.17504514,0.00012,2]
[349205583,1737039038762,-6274.60296468,0.00012,2]
[349205585,1737039038774,-9394.66954521,0.00012,2]
[349205587,1737039038786,-6072.6824982,0.00012,2]
[349205589,1737039038802,-1085.66672529,0.00012,2]
[349205592,1737039038817,-540.2796487,0.00012,2]
[349205593,1737039038829,-980.22,0.00012,2]
[349205594,1737039038850,-14389.8496024,0.00012,2]
[349205595,1737039038862,-4925.0,0.00012,2]
[349205601,1737039040154,-1215.03383588,0.00012,2]
[349205603,1737039040166,-708.92924413,0.00012,2]
[349205605,1737039040189,-1353.23790222,0.00012,2]
[349205606,1737039040218,-2200.45424,0.00012,2]
[349205607,1737039040244,-3290.16309345,0.00012,2]
[349205608,1737039040351,-6413.70935591,0.00012,2]
[349205609,1737039041350,-9789.0,0.00012,2]
[349205610,1737039041368,-405.72259981,0.00012,2]
[349205611,1737039041389,-78693.18454569,0.00012,2]
[349205612,1737039041398,-160.19556796,0.00012,2]
[349205613,1737039041411,-76207.75495589,0.00012,2]
[349205614,1737039041422,-8082.66,0.00012006,2]
[349205615,1737039041432,-4564.55,0.00012103,2]
[349205616,1737039041441,-500.0,0.00012136,2]
[349205617,1737039041451,-166.65,0.0001226,2]
[349205618,1737039041461,-500.0,0.00012273,2]
[349205619,1737039041471,-226.41,0.00012329,2]
[349205620,1737039041480,-500.0,0.0001241,2]
[349205621,1737039041490,-500.0,0.00012547,2]
[349205622,1737039041499,-500.0,0.00012628,2]
[349205623,1737039041509,-500.0,0.00012684,2]
[349205624,1737039041519,-1002.33,0.00012689,2]
[349205625,1737039041528,-500.0,0.00012821,2]
[349205626,1737039041538,-54633.69954,0.000129,7]
[349205627,1737039041554,-500.0,0.00012958,2]
[349205628,1737039041564,-1000.0,0.00013138,2]
[349205629,1737039041574,-420.0,0.00013172,2]
[349205631,1737039041584,-797.28,0.00013228,2]
[349205632,1737039041595,-6316.36,0.00013699,2]
[349205634,1737039041605,-166.65,0.00014011,2]
[349205635,1737039041616,-2477.4,0.0001427,2]
[349205637,1737039041627,-961.75779,0.0001438,2]
[349205638,1737039041638,-1000.0,0.00014452,2]
[349205639,1737039041648,-587.0,0.0001446,2]
[349205640,1737039041659,-332.18202674,0.00014828,2]
[349205641,1737039041669,-797.28,0.00014882,2]
[349205642,1737039041681,-825.0,0.000154,2]
[349205643,1737039041690,-166.65,0.00015763,2]
[349205644,1737039041700,-1000.0,0.00015766,2]
[349205645,1737039041709,-823.0,0.00015874,2]
[349205646,1737039041719,-150.10778384,0.00016438,2]
[349205647,1737039041728,-1500.0,0.00016459,2]
[349205648,1737039041737,-2477.4,0.00016534,2]
[349205649,1737039041748,-797.28,0.00016535,2]
[349205651,1737039041757,-23900.0,0.0001669,2]
[349205653,1737039041767,-802.72,0.00016699,2]
[349205654,1737039041776,-232.78,0.00016762,2]
[349205655,1737039041786,-250.0,0.00016772,2]
[349205656,1737039041795,-961.75779,0.0001688,2]
[349205657,1737039041809,-200.0,0.00016901,2]
[349205658,1737039041819,-637.8,0.00016928,2]
[349205659,1737039041828,-4564.55,0.00016944,2]
[349205660,1737039041838,-446.3,0.00017383,2]
[349205661,1737039041849,-631.0,0.00017426,2]
[349205662,1737039041859,-7278.29136177,0.00017445,2]
[349205663,1737039041869,-170.13,0.00017491,2]
[349205664,1737039041879,-2488.634422,0.000175,5]
[349205665,1737039041889,-409.95,0.000175,2]
[349205666,1737039041899,-232.78,0.000176,2]
[349205667,1737039041909,-332.18202674,0.00017757,2]
[349205668,1737039041919,-797.28,0.00018189,2]
[349205669,1737039041929,-232.78,0.00018438,2]
[349205670,1737039041939,-802.72,0.00018786,2]
[349205671,1737039041950,-2477.4,0.00018798,2]
[349205672,1737039041959,-232.78,0.00019276,2]
[349205673,1737039041969,-961.7578,0.0001938,2]
[349205674,1737039041978,-797.28,0.00019842,2]
[349205675,1737039041988,-232.78,0.00020114,2]
[349205676,1737039041998,-570.0,0.00020384,2]
[349205677,1737039042007,-332.18202674,0.00020685,2]
[349205678,1737039042017,-802.72,0.00020873,2]
[349205679,1737039042027,-2477.4,0.00021062,2]
[349205680,1737039042036,-961.75779,0.0002188,2]
[349205681,1737039042050,-802.72,0.00022961,2]
[349205682,1737039042060,-2477.4,0.00023326,2]
[349205683,1737039042071,-332.18202674,0.00023614,2]
[349205684,1737039042080,-961.75779,0.0002438,2]
[349205685,1737039042090,-150.99,0.0002498,2]
[349205686,1737039042101,-1874.81,0.0002498,2]
[349205687,1737039042110,-9999.99,0.0002498,2]
[349205688,1737039042120,-299.99,0.0002498,7]
[349205689,1737039042130,-377.71,0.0002498,2]
[349205690,1737039042140,-150.99,0.0002498,2]
[349205691,1737039042150,-392.98,0.0002498,2]
[349205692,1737039042160,-1005.8,0.0002498,2]
[349205693,1737039042169,-802.72,0.00025048,120]
[349205694,1737039042179,-2477.4,0.00025589,2]
[349205695,1737039042189,-150.5,0.00025756,30]
[349205696,1737039042198,-150.5,0.00025756,120]
[349205697,1737039042208,-150.5,0.00025766,30]
[349205698,1737039042218,-150.5,0.00025766,120]
[349205699,1737039042227,-150.5,0.00025776,30]
[349205700,1737039042237,-150.5,0.00025776,120]
[349205701,1737039042247,-332.18202674,0.00026542,2]
[349205702,1737039042257,-32564.0,0.00027779,2]
[349205703,1737039042266,-2477.4,0.00027853,2]
[349205704,1737039042276,-300.0,0.00028,120]
[349205705,1737039042286,-153.03,0.00028258,2]
[349205706,1737039042295,-332.18202674,0.00029471,2]
[349205707,1737039042309,-156.443,0.0002989,120]
[349205708,1737039042323,-13000.0,0.0003,2]
[349205709,1737039042333,-300.0,0.0003,120]
[349205710,1737039042342,-151.0,0.0003,120]
[349205711,1737039042352,-151.0,0.0003,120]
[349205712,1737039042363,-151.0,0.00030018,5]
[349205713,1737039042372,-2477.4,0.00030117,2]
[349205714,1737039042382,-156.442,0.0003109,120]
[349205715,1737039042391,-300.0,0.00032,120]
[349205716,1737039042402,-377.0,0.000321,5]
[349205717,1737039042411,-156.429,0.0003229,120]
[349205718,1737039042421,-500.0,0.00032329,2]
[349205719,1737039042430,-2477.4,0.00032381,2]
[349205720,1737039042439,-332.18202674,0.00032399,2]
[349205721,1737039042450,-156.383,0.0003349,120]
[349205722,1737039042459,-300.0,0.00034,120]
[349205723,1737039042468,-151.0,0.00034274,120]
[349205724,1737039042478,-150.0,0.00034548,10]
[349205725,1737039042487,-2477.4,0.00034645,2]
[349205726,1737039042497,-156.414,0.0003469,120]
[349205727,1737039042507,-1000.0,0.00035,9]
[349205728,1737039042517,-1000.0,0.00035,3]
[349205729,1737039042527,-151.0,0.00035014,120]
[349205730,1737039042537,-157.7,0.00035127,3]
[349205731,1737039042546,-332.18202674,0.00035328,2]
[349205732,1737039042559,-156.372,0.0003589,120]
[349205733,1737039042569,-300.0,0.00036,120]
[349205734,1737039042578,-4043.159,0.00036424,45]
[349205735,1737039042588,-200.0,0.0003664,2]
[349205736,1737039042598,-875.69,0.00036849,2]
[349205737,1737039042608,-539.19,0.00036882,2]
[349205738,1737039042618,-214.588611,0.000369,30]
[349205739,1737039042628,-2477.4,0.00036909,2]
[349205740,1737039042638,-438.08,0.00037082,2]